Workbook

Sheet النسب
A2: النسبة المؤية | B2: النسبة العامة | C2: المبلغ | D2: اسم البند | E2: القيمة المستحقة | F2: النسبة المؤية | I2: =VLOOKUP($H5,'النسب '!$A$2:$E$23,6,0) -> 
A3: 0 | B3: 0 | C3: 0 | D3: 0 | E3: 0 | F3: 0
A4: 0.05 | B4: 5 | C4: 32000 | D4: مجارى مطر وكمر وتدعيمات | E4: =+C4*A4 -> 1600 | F4: 0.05
A5: 0.1 | B5: 10 | C5: =+C4 -> 32000 | D5: =+D4 -> مجارى مطر وكمر وتدعيمات | E5: 3200 | F5: 0.1
A6: 0.15 | B6: 15 | C6: =+C5 -> 32000 | D6: مجارى مطر وكمر وتدعيمات | E6: 4800 | F6: 0.15
A7: 0.2 | B7: 20 | C7: 32000 | D7: مجارى مطر وكمر وتدعيمات | E7: 6400 | F7: 0.2
A8: 0.25 | B8: 25 | C8: 32000 | D8: مجارى مطر وكمر وتدعيمات | E8: 8000 | F8: 0.25
A9: 0.3 | B9: 30 | C9: 32000 | D9: مجارى مطر وكمر وتدعيمات | E9: 9600 | F9: 0.3
A10: 0.35 | B10: 35 | C10: 32000 | D10: مجارى مطر وكمر وتدعيمات | E10: 11200 | F10: 0.35
A11: 0.4 | B11: 40 | C11: 32000 | D11: مجارى مطر وكمر وتدعيمات | E11: 12800 | F11: 0.4
A12: 0.45 | B12: 45 | C12: 32000 | D12: مجارى مطر وكمر وتدعيمات | E12: 14400 | F12: 0.45
A13: 0.5 | B13: 50 | C13: 32000 | D13: مجارى مطر وكمر وتدعيمات | E13: 16000 | F13: 0.5
A14: 0.55 | B14: 55 | C14: 32000 | D14: مجارى مطر وكمر وتدعيمات | E14: 17600 | F14: 0.55
A15: 0.6 | B15: 60 | C15: 32000 | D15: مجارى مطر وكمر وتدعيمات | E15: 19200 | F15: 0.6
A16: 0.65 | B16: 65 | C16: 32000 | D16: مجارى مطر وكمر وتدعيمات | E16: 20800 | F16: 0.65
A17: 0.7 | B17: 70 | C17: 32000 | D17: مجارى مطر وكمر وتدعيمات | E17: 22400 | F17: 0.7
A18: 0.75 | B18: 75 | C18: 32000 | D18: مجارى مطر وكمر وتدعيمات | E18: 24000 | F18: 0.75
A19: 0.8 | B19: 80 | C19: 32000 | D19: مجارى مطر وكمر وتدعيمات | E19: 25600 | F19: 0.8
A20: 0.85 | B20: 85 | C20: 32000 | D20: مجارى مطر وكمر وتدعيمات | E20: 27200 | F20: 0.85
A21: 0.9 | B21: 90 | C21: 32000 | D21: مجارى مطر وكمر وتدعيمات | E21: 28800 | F21: 0.9
A22: 0.95 | B22: 95 | C22: =+C21 -> 32000 | D22: مجارى مطر وكمر وتدعيمات | E22: 30400 | F22: 0.95
A23: 1 | B23: 100 | C23: 32000 | D23: مجارى مطر وكمر وتدعيمات | E23: 32000 | F23: 1
A24: 0.05 | B24: 5 | C24: 42000 | D24: الاقواس والمدادات | E24: 2100 | F24: 0.05
A25: 0.1 | B25: 10 | C25: =+C24 -> 42000 | D25: الاقواس والمدادات | E25: =+C25*A25 -> 4200 | F25: 0.1
A26: 0.15 | B26: 15 | C26: =+C25 -> 42000 | D26: الاقواس والمدادات | E26: 6300 | F26: 0.15
A27: 0.2 | B27: 20 | C27: 42000 | D27: الاقواس والمدادات | E27: 8400 | F27: 0.2
A28: 0.25 | B28: 25 | C28: 42000 | D28: الاقواس والمدادات | E28: 10500 | F28: 0.25
A29: 0.3 | B29: 30 | C29: 42000 | D29: الاقواس والمدادات | E29: 12600 | F29: 0.3
A30: 0.35 | B30: 35 | C30: 42000 | D30: الاقواس والمدادات | E30: 14700 | F30: 0.35
A31: 0.4 | B31: 40 | C31: 42000 | D31: الاقواس والمدادات | E31: 16800 | F31: 0.4
A32: 0.45 | B32: 45 | C32: 42000 | D32: الاقواس والمدادات | E32: 18900 | F32: 0.45
A33: 0.5 | B33: 50 | C33: 42000 | D33: الاقواس والمدادات | E33: 21000 | F33: 0.5
A34: 0.55 | B34: 55 | C34: 42000 | D34: الاقواس والمدادات | E34: 23100 | F34: 0.55
A35: 0.6 | B35: 60 | C35: 42000 | D35: الاقواس والمدادات | E35: 25200 | F35: 0.6
A36: 0.65 | B36: 65 | C36: 42000 | D36: الاقواس والمدادات | E36: 27300 | F36: 0.65
A37: 0.7 | B37: 70 | C37: 42000 | D37: الاقواس والمدادات | E37: 29400 | F37: 0.7
A38: 0.75 | B38: 75 | C38: 42000 | D38: الاقواس والمدادات | E38: 31500 | F38: 0.75
A39: 0.8 | B39: 80 | C39: 42000 | D39: الاقواس والمدادات | E39: 33600 | F39: 0.8
A40: 0.85 | B40: 85 | C40: 42000 | D40: الاقواس والمدادات | E40: 35700 | F40: 0.85
A41: 0.9 | B41: 90 | C41: 42000 | D41: الاقواس والمدادات | E41: 37800 | F41: 0.9
A42: 0.95 | B42: 95 | C42: 42000 | D42: الاقواس والمدادات | E42: 39900 | F42: 0.95
A43: 1 | B43: 100 | C43: 42000 | D43: الاقواس والمدادات | E43: 42000 | F43: 1
A44: 0.05 | B44: 5 | C44: 42000 | D44: البروفيل | E44: =+C44*A44 -> 2100 | F44: 0.05
A45: 0.1 | B45: 10 | C45: =+C44 -> 42000 | D45: =+D44 -> البروفيل | E45: =+C45*A45 -> 4200 | F45: 0.1
A46: 0.15 | B46: 15 | C46: =+C45 -> 42000 | D46: البروفيل | E46: 6300 | F46: 0.15
A47: 0.2 | B47: 20 | C47: =+C46 -> 42000 | D47: البروفيل | E47: 8400 | F47: 0.2
A48: 0.25 | B48: 25 | C48: =+C47 -> 42000 | D48: البروفيل | E48: 10500 | F48: 0.25
A49: 0.3 | B49: 30 | C49: =+C48 -> 42000 | D49: البروفيل | E49: 12600 | F49: 0.3
A50: 0.35 | B50: 35 | C50: =+C49 -> 42000 | D50: البروفيل | E50: 14700 | F50: 0.35
A51: 0.4 | B51: 40 | C51: =+C50 -> 42000 | D51: البروفيل | E51: 16800 | F51: 0.4
A52: 0.45 | B52: 45 | C52: =+C51 -> 42000 | D52: البروفيل | E52: 18900 | F52: 0.45
A53: 0.5 | B53: 50 | C53: =+C52 -> 42000 | D53: البروفيل | E53: 21000 | F53: 0.5
A54: 0.55 | B54: 55 | C54: =+C53 -> 42000 | D54: البروفيل | E54: 23100 | F54: 0.55
A55: 0.6 | B55: 60 | C55: =+C54 -> 42000 | D55: البروفيل | E55: 25200 | F55: 0.6
A56: 0.65 | B56: 65 | C56: =+C55 -> 42000 | D56: البروفيل | E56: 27300 | F56: 0.65
A57: 0.7 | B57: 70 | C57: =+C56 -> 42000 | D57: البروفيل | E57: 29400 | F57: 0.7
A58: 0.75 | B58: 75 | C58: =+C57 -> 42000 | D58: البروفيل | E58: 31500 | F58: 0.75
A59: 0.8 | B59: 80 | C59: =+C58 -> 42000 | D59: البروفيل | E59: 33600 | F59: 0.8
A60: 0.85 | B60: 85 | C60: =+C59 -> 42000 | D60: البروفيل | E60: 35700 | F60: 0.85
A61: 0.9 | B61: 90 | C61: =+C60 -> 42000 | D61: البروفيل | E61: 37800 | F61: 0.9
A62: 0.95 | B62: 95 | C62: =+C61 -> 42000 | D62: البروفيل | E62: 39900 | F62: 0.95
A63: 1 | B63: 100 | C63: =+C62 -> 42000 | D63: البروفيل | E63: 42000 | F63: 1
A64: 0.05 | B64: 5 | C64: 6000 | D64: البوبات | E64: =+C64*A64 -> 300 | F64: 0.05
A65: 0.1 | B65: 10 | C65: =+C64 -> 6000 | D65: =+D64 -> البوبات | E65: =+C65*A65 -> 600 | F65: 0.1
A66: 0.15 | B66: 15 | C66: =+C65 -> 6000 | D66: البوبات | E66: 900 | F66: 0.15
A67: 0.2 | B67: 20 | C67: =+C66 -> 6000 | D67: البوبات | E67: 1200 | F67: 0.2
A68: 0.25 | B68: 25 | C68: =+C67 -> 6000 | D68: البوبات | E68: 1500 | F68: 0.25
A69: 0.3 | B69: 30 | C69: =+C68 -> 6000 | D69: البوبات | E69: 1800 | F69: 0.3
A70: 0.35 | B70: 35 | C70: =+C69 -> 6000 | D70: البوبات | E70: 2100 | F70: 0.35
A71: 0.4 | B71: 40 | C71: =+C70 -> 6000 | D71: البوبات | E71: 2400 | F71: 0.4
A72: 0.45 | B72: 45 | C72: =+C71 -> 6000 | D72: البوبات | E72: 2700 | F72: 0.45
A73: 0.5 | B73: 50 | C73: =+C72 -> 6000 | D73: البوبات | E73: 3000 | F73: 0.5
A74: 0.55 | B74: 55 | C74: =+C73 -> 6000 | D74: البوبات | E74: 3300 | F74: 0.55
A75: 0.6 | B75: 60 | C75: =+C74 -> 6000 | D75: البوبات | E75: 3600 | F75: 0.6
A76: 0.65 | B76: 65 | C76: =+C75 -> 6000 | D76: البوبات | E76: 3900 | F76: 0.65
A77: 0.7 | B77: 70 | C77: =+C76 -> 6000 | D77: البوبات | E77: 4200 | F77: 0.7
A78: 0.75 | B78: 75 | C78: =+C77 -> 6000 | D78: البوبات | E78: 4500 | F78: 0.75
A79: 0.8 | B79: 80 | C79: =+C78 -> 6000 | D79: البوبات | E79: 4800 | F79: 0.8
A80: 0.85 | B80: 85 | C80: =+C79 -> 6000 | D80: البوبات | E80: 5100 | F80: 0.85
A81: 0.9 | B81: 90 | C81: =+C80 -> 6000 | D81: البوبات | E81: 5400 | F81: 0.9
A82: 0.95 | B82: 95 | C82: =+C81 -> 6000 | D82: البوبات | E82: 5700 | F82: 0.95
A83: 1 | B83: 100 | C83: =+C82 -> 6000 | D83: البوبات | E83: 6000 | F83: 1
A84: 0.05 | B84: 5 | C84: 6000 | D84: النهايز | E84: =+C84*A84 -> 300 | F84: 0.05
A85: 0.1 | B85: 10 | C85: =+C84 -> 6000 | D85: =+D84 -> النهايز | E85: =+C85*A85 -> 600 | F85: 0.1
A86: 0.15 | B86: 15 | C86: =+C85 -> 6000 | D86: النهايز | E86: 900 | F86: 0.15
A87: 0.2 | B87: 20 | C87: =+C86 -> 6000 | D87: النهايز | E87: 1200 | F87: 0.2
A88: 0.25 | B88: 25 | C88: =+C87 -> 6000 | D88: النهايز | E88: 1500 | F88: 0.25
A89: 0.3 | B89: 30 | C89: =+C88 -> 6000 | D89: النهايز | E89: 1800 | F89: 0.3
A90: 0.35 | B90: 35 | C90: =+C89 -> 6000 | D90: النهايز | E90: 2100 | F90: 0.35
A91: 0.4 | B91: 40 | C91: =+C90 -> 6000 | D91: النهايز | E91: 2400 | F91: 0.4
A92: 0.45 | B92: 45 | C92: =+C91 -> 6000 | D92: النهايز | E92: 2700 | F92: 0.45
A93: 0.5 | B93: 50 | C93: =+C92 -> 6000 | D93: النهايز | E93: 3000 | F93: 0.5
A94: 0.55 | B94: 55 | C94: =+C93 -> 6000 | D94: النهايز | E94: 3300 | F94: 0.55
A95: 0.6 | B95: 60 | C95: =+C94 -> 6000 | D95: النهايز | E95: 3600 | F95: 0.6
A96: 0.65 | B96: 65 | C96: =+C95 -> 6000 | D96: النهايز | E96: 3900 | F96: 0.65
A97: 0.7 | B97: 70 | C97: =+C96 -> 6000 | D97: النهايز | E97: 4200 | F97: 0.7
A98: 0.75 | B98: 75 | C98: =+C97 -> 6000 | D98: النهايز | E98: 4500 | F98: 0.75
A99: 0.8 | B99: 80 | C99: =+C98 -> 6000 | D99: النهايز | E99: 4800 | F99: 0.8
A100: 0.85 | B100: 85 | C100: =+C99 -> 6000 | D100: النهايز | E100: 5100 | F100: 0.85
A101: 0.9 | B101: 90 | C101: =+C100 -> 6000 | D101: النهايز | E101: 5400 | F101: 0.9
A102: 0.95 | B102: 95 | C102: =+C101 -> 6000 | D102: النهايز | E102: 5700 | F102: 0.95
A103: 1 | B103: 100 | C103: =+C102 -> 6000 | D103: النهايز | E103: 6000 | F103: 1
A104: 0.05 | B104: 5 | C104: 6000 | D104: حامل ثمار | E104: =+C104*A104 -> 300 | F104: 0.05
A105: 0.1 | B105: 10 | C105: =+C104 -> 6000 | D105: =+D104 -> حامل ثمار | E105: =+C105*A105 -> 600 | F105: 0.1
A106: 0.15 | B106: 15 | C106: =+C105 -> 6000 | D106: حامل ثمار | E106: 900 | F106: 0.15
A107: 0.2 | B107: 20 | C107: =+C106 -> 6000 | D107: حامل ثمار | E107: 1200 | F107: 0.2
A108: 0.25 | B108: 25 | C108: =+C107 -> 6000 | D108: حامل ثمار | E108: 1500 | F108: 0.25
A109: 0.3 | B109: 30 | C109: =+C108 -> 6000 | D109: حامل ثمار | E109: 1800 | F109: 0.3
A110: 0.35 | B110: 35 | C110: =+C109 -> 6000 | D110: حامل ثمار | E110: 2100 | F110: 0.35
A111: 0.4 | B111: 40 | C111: =+C110 -> 6000 | D111: حامل ثمار | E111: 2400 | F111: 0.4
A112: 0.45 | B112: 45 | C112: =+C111 -> 6000 | D112: حامل ثمار | E112: 2700 | F112: 0.45
A113: 0.5 | B113: 50 | C113: =+C112 -> 6000 | D113: حامل ثمار | E113: 3000 | F113: 0.5
A114: 0.55 | B114: 55 | C114: =+C113 -> 6000 | D114: حامل ثمار | E114: 3300 | F114: 0.55
A115: 0.6 | B115: 60 | C115: =+C114 -> 6000 | D115: حامل ثمار | E115: 3600 | F115: 0.6
A116: 0.65 | B116: 65 | C116: =+C115 -> 6000 | D116: حامل ثمار | E116: 3900 | F116: 0.65
A117: 0.7 | B117: 70 | C117: =+C116 -> 6000 | D117: حامل ثمار | E117: 4200 | F117: 0.7
A118: 0.75 | B118: 75 | C118: =+C117 -> 6000 | D118: حامل ثمار | E118: 4500 | F118: 0.75
A119: 0.8 | B119: 80 | C119: =+C118 -> 6000 | D119: حامل ثمار | E119: 4800 | F119: 0.8
A120: 0.85 | B120: 85 | C120: =+C119 -> 6000 | D120: حامل ثمار | E120: 5100 | F120: 0.85
A121: 0.9 | B121: 90 | C121: =+C120 -> 6000 | D121: حامل ثمار | E121: 5400 | F121: 0.9
A122: 0.95 | B122: 95 | C122: =+C121 -> 6000 | D122: حامل ثمار | E122: 5700 | F122: 0.95
A123: 1 | B123: 100 | C123: =+C122 -> 6000 | D123: حامل ثمار | E123: 6000 | F123: 1
A124: 0.05 | B124: 5 | C124: 35000 | D124: أعمدة وجرابات | E124: =+C124*A12 -> 15750 | F124: 0.05
A125: 0.1 | B125: 10 | C125: =+C124 -> 35000 | D125: =+D124 -> أعمدة وجرابات | E125: =+C125*A13 -> 17500 | F125: 0.1
A126: 0.15 | B126: 15 | C126: =+C125 -> 35000 | D126: أعمدة وجرابات | E126: 19250 | F126: 0.15
A127: 0.2 | B127: 20 | C127: =+C126 -> 35000 | D127: أعمدة وجرابات | E127: 21000 | F127: 0.2
A128: 0.25 | B128: 25 | C128: =+C127 -> 35000 | D128: أعمدة وجرابات | E128: 22750 | F128: 0.25
A129: 0.3 | B129: 30 | C129: =+C128 -> 35000 | D129: أعمدة وجرابات | E129: 24500 | F129: 0.3
A130: 0.35 | B130: 35 | C130: =+C129 -> 35000 | D130: أعمدة وجرابات | E130: 26250 | F130: 0.35
A131: 0.4 | B131: 40 | C131: =+C130 -> 35000 | D131: أعمدة وجرابات | E131: 28000 | F131: 0.4
A132: 0.45 | B132: 45 | C132: =+C131 -> 35000 | D132: أعمدة وجرابات | E132: 29750 | F132: 0.45
A133: 0.5 | B133: 50 | C133: =+C132 -> 35000 | D133: أعمدة وجرابات | E133: 31500 | F133: 0.5
A134: 0.55 | B134: 55 | C134: =+C133 -> 35000 | D134: أعمدة وجرابات | E134: 33250 | F134: 0.55
A135: 0.6 | B135: 60 | C135: =+C134 -> 35000 | D135: أعمدة وجرابات | E135: 35000 | F135: 0.6
A136: 0.65 | B136: 65 | C136: =+C135 -> 35000 | D136: أعمدة وجرابات | E136: 1750 | F136: 0.65
A137: 0.7 | B137: 70 | C137: =+C136 -> 35000 | D137: أعمدة وجرابات | E137: 3500 | F137: 0.7
A138: 0.75 | B138: 75 | C138: =+C137 -> 35000 | D138: أعمدة وجرابات | E138: 5250 | F138: 0.75
A139: 0.8 | B139: 80 | C139: =+C138 -> 35000 | D139: أعمدة وجرابات | E139: 7000 | F139: 0.8
A140: 0.85 | B140: 85 | C140: =+C139 -> 35000 | D140: أعمدة وجرابات | E140: 8750 | F140: 0.85
A141: 0.9 | B141: 90 | C141: =+C140 -> 35000 | D141: أعمدة وجرابات | E141: 10500 | F141: 0.9
A142: 0.95 | B142: 95 | C142: =+C141 -> 35000 | D142: أعمدة وجرابات | E142: 12250 | F142: 0.95
A143: 1 | B143: 100 | C143: =+C142 -> 35000 | D143: أعمدة وجرابات | E143: 14000 | F143: 1
A144: 0.05 | B144: 5 | F144: 0.05
A145: 0.1 | B145: 10 | F145: 0.1
A146: 0.15 | B146: 15 | F146: 0.15
A147: 0.2 | B147: 20 | F147: 0.2
A148: 0.25 | B148: 25 | F148: 0.25
A149: 0.3 | B149: 30 | F149: 0.3
A150: 0.35 | B150: 35 | F150: 0.35
A151: 0.4 | B151: 40 | F151: 0.4
A152: 0.45 | B152: 45 | F152: 0.45
A153: 0.5 | B153: 50 | F153: 0.5
A154: 0.55 | B154: 55 | F154: 0.55
A155: 0.6 | B155: 60 | F155: 0.6
A156: 0.65 | B156: 65 | F156: 0.65
A157: 0.7 | B157: 70 | F157: 0.7
A158: 0.75 | B158: 75 | F158: 0.75
A159: 0.8 | B159: 80 | F159: 0.8
A160: 0.85 | B160: 85 | F160: 0.85
A161: 0.9 | B161: 90 | F161: 0.9
A162: 0.95 | B162: 95 | F162: 0.95
A163: 1 | B163: 100 | F163: 1

Sheet القائمة
A1: أسماء المقاولين | B1: الكلاستر | C1: الصوبة | D1: العملية | E1: =+E2-تفرير!I4 ->  | F1: المقاول | G1: المبلغ
A2: محمد سليمان | B2: E1 | C2: 1 | D2: أعمدة وجرابات | E2: =SUM(G2:G22) ->  | F2: =+A2 -> محمد سليمان | G2: =SUMIF(الشغل!#REF!,$F2,الشغل!#REF!)+500 -> 
A3: احمد حلمى | B3: E2 | C3: 2 | D3: مجارى كمر وتدعيم | F3: =+A3 -> احمد حلمى | G3: =SUMIF(الشغل!#REF!,$F3,الشغل!#REF!) -> 
A4: سامى الغندور | B4: E3 | C4: 3 | D4: الاقواس | F4: سامى الغندور | G4: =SUMIF(الشغل!#REF!,$F4,الشغل!#REF!) -> 
A5: حسين عبد العال | B5: E4 | C5: 4 | D5: المدادات | F5: حسين عبد العال | G5: =SUMIF(الشغل!#REF!,$F5,الشغل!#REF!)-500 -> 
A6: عرفه محمود | B6: E5 | C6: 5 | D6: البروفيل | F6: عرفه محمود | G6: =SUMIF(الشغل!#REF!,$F6,الشغل!#REF!) -> 
A7: هيثم العايدى | B7: E6 | C7: 6 | D7: البوابات | F7: هيثم العايدى | G7: =SUMIF(الشغل!#REF!,$F7,الشغل!#REF!) -> 
A8: طاهر طارق | B8: E7 | C8: 7 | D8: النهايز | F8: طاهر طارق | G8: =SUMIF(الشغل!#REF!,$F8,الشغل!#REF!) -> 
A9: محمد على البرى | B9: E8 | C9: 8 | D9: حامل ثمار | F9: محمد على البرى | G9: =SUMIF(الشغل!#REF!,$F9,الشغل!#REF!) -> 
A10: شعبان الامام | B10: E9 | F10: شعبان الامام | G10: =SUMIF(الشغل!#REF!,$F10,الشغل!#REF!) -> 
A11: ياسر حماد | B11: E10 | F11: ياسر حماد | G11: =SUMIF(الشغل!#REF!,$F11,الشغل!#REF!) -> 
A12: ياسر هجرس | B12: E11 | F12: ياسر هجرس | G12: =SUMIF(الشغل!#REF!,$F12,الشغل!#REF!) -> 
A13: محمد عياد | B13: E12 | F13: محمد عياد | G13: =SUMIF(الشغل!#REF!,$F13,الشغل!#REF!) -> 
A14: ضياء على محمد | B14: E13 | F14: ضياء على محمد | G14: =SUMIF(الشغل!#REF!,$F14,الشغل!#REF!) -> 
A15: محمود فاروق | B15: E14 | F15: محمود فاروق | G15: =SUMIF(الشغل!#REF!,$F15,الشغل!#REF!) -> 
A16: محمد جمعه | B16: E15 | F16: محمد جمعه | G16: =SUMIF(الشغل!#REF!,$F16,الشغل!#REF!) -> 
A17: احمد فارس | B17: E16 | F17: احمد فارس | G17: =SUMIF(الشغل!#REF!,$F17,الشغل!#REF!) -> 
A18: السيد محمد على | B18: E17 | F18: السيد محمد على | G18: =SUMIF(الشغل!#REF!,$F18,الشغل!#REF!) -> 
A19: احمد كمال | B19: E18 | F19: =+A19 -> احمد كمال | G19: =SUMIF(الشغل!#REF!,$F19,الشغل!#REF!) -> 
A20: احمد مرعى | B20: E19 | F20: احمد مرعى | G20: =SUMIF(الشغل!#REF!,$F20,الشغل!#REF!) -> 
A21: فتحى زيدان سعيد | B21: E20 | F21: فتحى زيدان سعيد | G21: =SUMIF(الشغل!#REF!,$F21,الشغل!#REF!) -> 
A22: احمد عبد المنعم | B22: E21 | F22: احمد عبد المنعم | G22: =SUMIF(الشغل!#REF!,$F22,الشغل!#REF!) -> 
A23: ياسر ابو طالب | B23: E22 | F23: ياسر ابو طالب
A24: ناصر | B24: E23 | F24: ناصر
B25: E24
B26: E25
B27: E26
B28: E27
B29: E28
B30: E29
B31: E30
B32: E31
B33: E32
B34: E33
B35: E34
B36: E35
B37: E36
B38: E37
B39: E38
B40: E39
B41: E40
B42: E41
B43: E42
B44: E43
B45: E44
B46: E45
B47: E46

Sheet الشغل
I2: =SUBTOTAL(9,I5:I24) -> 20800
B4: التاريخ | C4: المقاول | D4: الكلاستر | E4: الصوبة | F4: عدد العمال | G4: العملية | H4: النسبة | I4: القيمة المستحقة
B5: 2019-06-26 | C5: احمد حلمى | D5: E1 | E5: 2 | F5: 0 | G5: أعمدة وجرابات | H5: 0.1 | I5: =IF(G5<>"",VLOOKUP($H5,'النسب '!$A$2:$E$143,5,0),"") -> 3200
B6: 2023-05-26 | C6: سامى الغندور | D6: E2 | E6: 3 | F6: 0 | G6: مجارى كمر وتدعيم | H6: 0.05 | I6: =IF(G6<>"",VLOOKUP($H6,'النسب '!$A$2:$E$143,5,0),"") -> 1600
B7: 2023-05-27 | C7: حسين عبد العال | D7: E3 | E7: 8 | F7: 0 | G7: البوابات | H7: 0.15 | I7: =IF(G7<>"",VLOOKUP($H7,'النسب '!$A$2:$E$143,5,0),"") -> 4800
B8: 2023-05-28 | C8: احمد فارس | D8: E5 | E8: 6 | F8: 0 | G8: النهايز | H8: 0.2 | I8: =IF(G8<>"",VLOOKUP($H8,'النسب '!$A$2:$E$143,5,0),"") -> 6400
B9: 2023-05-29 | C9: احمد حلمى | D9: E1 | E9: 2 | F9: 0 | G9: أعمدة وجرابات | H9: 0.1 | I9: =IF(G9=القائمة!D$2,VLOOKUP($H9,'النسب '!$A$2:$E$143,5,0),"") -> 3200
B10: 2023-05-30 | C10: سامى الغندور | D10: E2 | E10: 3 | F10: 0 | G10: مجارى كمر وتدعيم | H10: 0.05 | I10: =IF(G10=القائمة!D$2,VLOOKUP($H10,'النسب '!$A$2:$E$143,5,0),"") -> 
B11: 2023-05-31 | C11: حسين عبد العال | D11: E3 | E11: 8 | F11: 0 | G11: البوابات | H11: 0.15 | I11: =IF(G11=القائمة!D$2,VLOOKUP($H11,'النسب '!$A$2:$E$143,5,0),"") -> 
B12: 2023-06-01 | C12: احمد فارس | D12: E5 | E12: 6 | F12: 0 | G12: النهايز | H12: 0.2 | I12: =IF(G12=القائمة!D$2,VLOOKUP($H12,'النسب '!$A$2:$E$143,5,0),"") -> 
B13: 2023-06-02 | C13: سامى الغندور | D13: E2 | E13: 3 | F13: 0 | G13: أعمدة وجرابات | H13: 0.05 | I13: =IF(G13=القائمة!D$2,VLOOKUP($H13,'النسب '!$A$2:$E$143,5,0),"") -> 1600
B14: 2023-06-03 | C14: حسين عبد العال | D14: E3 | E14: 8 | F14: 0 | G14: مجارى كمر وتدعيم | H14: 0.15 | I14: =IF(G14=القائمة!D$2,VLOOKUP($H14,'النسب '!$A$2:$E$143,5,0),"") -> 
B15: 2023-06-04 | C15: احمد فارس | D15: E5 | E15: 6 | F15: 0 | G15: النهايز | H15: 0.2 | I15: =IF(G15=القائمة!D$2,VLOOKUP($H15,'النسب '!$A$2:$E$143,5,0),"") -> 
I16: =IF(G16=القائمة!D$2,VLOOKUP($H16,'النسب '!$A$2:$E$143,5,0),"") -> 
I17: =IF(G17=القائمة!D$2,VLOOKUP($H17,'النسب '!$A$2:$E$143,5,0),"") -> 
I18: =IF(G18=القائمة!D$2,VLOOKUP($H18,'النسب '!$A$2:$E$143,5,0),"") -> 
I19: =IF(G19=القائمة!D$2,VLOOKUP($H19,'النسب '!$A$2:$E$143,5,0),"") -> 
I20: =IF(G20=القائمة!D$2,VLOOKUP($H20,'النسب '!$A$2:$E$143,5,0),"") -> 
I21: =IF(G21=القائمة!D$2,VLOOKUP($H21,'النسب '!$A$2:$E$143,5,0),"") -> 
I22: =IF(G22=القائمة!D$2,VLOOKUP($H22,'النسب '!$A$2:$E$143,5,0),"") -> 
I23: =IF(G23=القائمة!D$2,VLOOKUP($H23,'النسب '!$A$2:$E$143,5,0),"") -> 
I24: =IF(G24=القائمة!D$2,VLOOKUP($H24,'النسب '!$A$2:$E$143,5,0),"") -> 
I25: =IF(G25=القائمة!D$2,VLOOKUP($H25,'النسب '!$A$2:$E$143,5,0),"") -> 
I26: =IF(G26=القائمة!D$2,VLOOKUP($H26,'النسب '!$A$2:$E$143,5,0),"") -> 
I27: =IF(G27=القائمة!D$2,VLOOKUP($H27,'النسب '!$A$2:$E$143,5,0),"") -> 
I28: =IF(G28=القائمة!D$2,VLOOKUP($H28,'النسب '!$A$2:$E$143,5,0),"") -> 
I29: =IF(G29=القائمة!D$2,VLOOKUP($H29,'النسب '!$A$2:$E$143,5,0),"") -> 
I30: =IF(G30=القائمة!D$2,VLOOKUP($H30,'النسب '!$A$2:$E$143,5,0),"") -> 
I31: =IF(G31=القائمة!D$2,VLOOKUP($H31,'النسب '!$A$2:$E$143,5,0),"") -> 
I32: =IF(G32=القائمة!D$2,VLOOKUP($H32,'النسب '!$A$2:$E$143,5,0),"") -> 
I33: =IF(G33=القائمة!D$2,VLOOKUP($H33,'النسب '!$A$2:$E$143,5,0),"") -> 
I34: =IF(G34=القائمة!D$2,VLOOKUP($H34,'النسب '!$A$2:$E$143,5,0),"") -> 
I35: =IF(G35=القائمة!D$2,VLOOKUP($H35,'النسب '!$A$2:$E$143,5,0),"") -> 
I36: =IF(G36=القائمة!D$2,VLOOKUP($H36,'النسب '!$A$2:$E$143,5,0),"") -> 
I37: =IF(G37=القائمة!D$2,VLOOKUP($H37,'النسب '!$A$2:$E$143,5,0),"") -> 
I38: =IF(G38=القائمة!D$2,VLOOKUP($H38,'النسب '!$A$2:$E$143,5,0),"") -> 
I39: =IF(G39=القائمة!D$2,VLOOKUP($H39,'النسب '!$A$2:$E$143,5,0),"") -> 
I40: =IF(G40=القائمة!D$2,VLOOKUP($H40,'النسب '!$A$2:$E$143,5,0),"") -> 
I41: =IF(G41=القائمة!D$2,VLOOKUP($H41,'النسب '!$A$2:$E$143,5,0),"") -> 
I42: =IF(G42=القائمة!D$2,VLOOKUP($H42,'النسب '!$A$2:$E$143,5,0),"") -> 
I43: =IF(G43=القائمة!D$2,VLOOKUP($H43,'النسب '!$A$2:$E$143,5,0),"") -> 
I44: =IF(G44=القائمة!D$2,VLOOKUP($H44,'النسب '!$A$2:$E$143,5,0),"") -> 
I45: =IF(G45=القائمة!D$2,VLOOKUP($H45,'النسب '!$A$2:$E$143,5,0),"") -> 
I46: =IF(G46=القائمة!D$2,VLOOKUP($H46,'النسب '!$A$2:$E$143,5,0),"") -> 
I47: =IF(G47=القائمة!D$2,VLOOKUP($H47,'النسب '!$A$2:$E$143,5,0),"") -> 
I48: =IF(G48=القائمة!D$2,VLOOKUP($H48,'النسب '!$A$2:$E$143,5,0),"") -> 
I49: =IF(G49=القائمة!D$2,VLOOKUP($H49,'النسب '!$A$2:$E$143,5,0),"") -> 
I50: =IF(G50=القائمة!D$2,VLOOKUP($H50,'النسب '!$A$2:$E$143,5,0),"") -> 
I51: =IF(G51=القائمة!D$2,VLOOKUP($H51,'النسب '!$A$2:$E$143,5,0),"") -> 
I52: =IF(G52=القائمة!D$2,VLOOKUP($H52,'النسب '!$A$2:$E$143,5,0),"") -> 
I53: =IF(G53=القائمة!D$2,VLOOKUP($H53,'النسب '!$A$2:$E$143,5,0),"") -> 
I54: =IF(G54=القائمة!D$2,VLOOKUP($H54,'النسب '!$A$2:$E$143,5,0),"") -> 
I55: =IF(G55=القائمة!D$2,VLOOKUP($H55,'النسب '!$A$2:$E$143,5,0),"") -> 
I56: =IF(G56=القائمة!D$2,VLOOKUP($H56,'النسب '!$A$2:$E$143,5,0),"") -> 
I57: =IF(G57=القائمة!D$2,VLOOKUP($H57,'النسب '!$A$2:$E$143,5,0),"") -> 
I58: =IF(G58=القائمة!D$2,VLOOKUP($H58,'النسب '!$A$2:$E$143,5,0),"") -> 
I59: =IF(G59=القائمة!D$2,VLOOKUP($H59,'النسب '!$A$2:$E$143,5,0),"") -> 
I60: =IF(G60=القائمة!D$2,VLOOKUP($H60,'النسب '!$A$2:$E$143,5,0),"") -> 
I61: =IF(G61=القائمة!D$2,VLOOKUP($H61,'النسب '!$A$2:$E$143,5,0),"") -> 
I62: =IF(G62=القائمة!D$2,VLOOKUP($H62,'النسب '!$A$2:$E$143,5,0),"") -> 
I63: =IF(G63=القائمة!D$2,VLOOKUP($H63,'النسب '!$A$2:$E$143,5,0),"") -> 
I64: =IF(G64=القائمة!D$2,VLOOKUP($H64,'النسب '!$A$2:$E$143,5,0),"") ->  | M64: =15000*60/100 -> 9000
I65: =IF(G65=القائمة!D$2,VLOOKUP($H65,'النسب '!$A$2:$E$143,5,0),"") -> 
I66: =IF(G66=القائمة!D$2,VLOOKUP($H66,'النسب '!$A$2:$E$143,5,0),"") -> 
I67: =IF(G67=القائمة!D$2,VLOOKUP($H67,'النسب '!$A$2:$E$143,5,0),"") -> 
I68: =IF(G68=القائمة!D$2,VLOOKUP($H68,'النسب '!$A$2:$E$143,5,0),"") -> 
I69: =IF(G69=القائمة!D$2,VLOOKUP($H69,'النسب '!$A$2:$E$143,5,0),"") -> 
I70: =IF(G70=القائمة!D$2,VLOOKUP($H70,'النسب '!$A$2:$E$143,5,0),"") -> 
I71: =IF(G71=القائمة!D$2,VLOOKUP($H71,'النسب '!$A$2:$E$143,5,0),"") -> 
I72: =IF(G72=القائمة!D$2,VLOOKUP($H72,'النسب '!$A$2:$E$143,5,0),"") -> 
I73: =IF(G73=القائمة!D$2,VLOOKUP($H73,'النسب '!$A$2:$E$143,5,0),"") -> 
I74: =IF(G74=القائمة!D$2,VLOOKUP($H74,'النسب '!$A$2:$E$143,5,0),"") -> 
I75: =IF(G75=القائمة!D$2,VLOOKUP($H75,'النسب '!$A$2:$E$143,5,0),"") -> 
I76: =IF(G76=القائمة!D$2,VLOOKUP($H76,'النسب '!$A$2:$E$143,5,0),"") -> 
I77: =IF(G77=القائمة!D$2,VLOOKUP($H77,'النسب '!$A$2:$E$143,5,0),"") -> 
I78: =IF(G78=القائمة!D$2,VLOOKUP($H78,'النسب '!$A$2:$E$143,5,0),"") ->  | M78: =590+1110 -> 1700
I79: =IF(G79=القائمة!D$2,VLOOKUP($H79,'النسب '!$A$2:$E$143,5,0),"") -> 
I80: =IF(G80=القائمة!D$2,VLOOKUP($H80,'النسب '!$A$2:$E$143,5,0),"") -> 
I81: =IF(G81=القائمة!D$2,VLOOKUP($H81,'النسب '!$A$2:$E$143,5,0),"") -> 
I82: =IF(G82=القائمة!D$2,VLOOKUP($H82,'النسب '!$A$2:$E$143,5,0),"") -> 
I83: =IF(G83=القائمة!D$2,VLOOKUP($H83,'النسب '!$A$2:$E$143,5,0),"") -> 
I84: =IF(G84=القائمة!D$2,VLOOKUP($H84,'النسب '!$A$2:$E$143,5,0),"") -> 
I85: =IF(G85=القائمة!D$2,VLOOKUP($H85,'النسب '!$A$2:$E$143,5,0),"") -> 
I86: =IF(G86=القائمة!D$2,VLOOKUP($H86,'النسب '!$A$2:$E$143,5,0),"") -> 
I87: =IF(G87=القائمة!D$2,VLOOKUP($H87,'النسب '!$A$2:$E$143,5,0),"") -> 
I88: =IF(G88=القائمة!D$2,VLOOKUP($H88,'النسب '!$A$2:$E$143,5,0),"") -> 
I89: =IF(G89=القائمة!D$2,VLOOKUP($H89,'النسب '!$A$2:$E$143,5,0),"") -> 
I90: =IF(G90=القائمة!D$2,VLOOKUP($H90,'النسب '!$A$2:$E$143,5,0),"") -> 
I91: =IF(G91=القائمة!D$2,VLOOKUP($H91,'النسب '!$A$2:$E$143,5,0),"") -> 
I92: =IF(G92=القائمة!D$2,VLOOKUP($H92,'النسب '!$A$2:$E$143,5,0),"") -> 
I93: =IF(G93=القائمة!D$2,VLOOKUP($H93,'النسب '!$A$2:$E$143,5,0),"") ->  | L93: 22000 | M93: 16000 | N93: =+M93/$L$93*100 -> 72.72727273
I94: =IF(G94=القائمة!D$2,VLOOKUP($H94,'النسب '!$A$2:$E$143,5,0),"") ->  | M94: =+L93-M93 -> 6000 | N94: =+M94/$L$93*100 -> 27.27272727
I95: =IF(G95=القائمة!D$2,VLOOKUP($H95,'النسب '!$A$2:$E$143,5,0),"") -> 
I96: =IF(G96=القائمة!D$2,VLOOKUP($H96,'النسب '!$A$2:$E$143,5,0),"") ->  | M96: =+M94*40/100 -> 2400 | N96: =+M96/L93*100 -> 10.90909091
I97: =IF(G97=القائمة!D$2,VLOOKUP($H97,'النسب '!$A$2:$E$143,5,0),"") -> 
I98: =IF(G98=القائمة!D$2,VLOOKUP($H98,'النسب '!$A$2:$E$143,5,0),"") -> 
I99: =IF(G99=القائمة!D$2,VLOOKUP($H99,'النسب '!$A$2:$E$143,5,0),"") -> 
I100: =IF(G100=القائمة!D$2,VLOOKUP($H100,'النسب '!$A$2:$E$143,5,0),"") -> 
I101: =IF(G101=القائمة!D$2,VLOOKUP($H101,'النسب '!$A$2:$E$143,5,0),"") -> 
I102: =IF(G102=القائمة!D$2,VLOOKUP($H102,'النسب '!$A$2:$E$143,5,0),"") -> 
I103: =IF(G103=القائمة!D$2,VLOOKUP($H103,'النسب '!$A$2:$E$143,5,0),"") -> 
I104: =IF(G104=القائمة!D$2,VLOOKUP($H104,'النسب '!$A$2:$E$143,5,0),"") -> 
I105: =IF(G105=القائمة!D$2,VLOOKUP($H105,'النسب '!$A$2:$E$143,5,0),"") -> 
I106: =IF(G106=القائمة!D$2,VLOOKUP($H106,'النسب '!$A$2:$E$143,5,0),"") -> 
I107: =IF(G107=القائمة!D$2,VLOOKUP($H107,'النسب '!$A$2:$E$143,5,0),"") -> 
I108: =IF(G108=القائمة!D$2,VLOOKUP($H108,'النسب '!$A$2:$E$143,5,0),"") -> 
I109: =IF(G109=القائمة!D$2,VLOOKUP($H109,'النسب '!$A$2:$E$143,5,0),"") -> 
I110: =IF(G110=القائمة!D$2,VLOOKUP($H110,'النسب '!$A$2:$E$143,5,0),"") -> 
I111: =IF(G111=القائمة!D$2,VLOOKUP($H111,'النسب '!$A$2:$E$143,5,0),"") -> 
I112: =IF(G112=القائمة!D$2,VLOOKUP($H112,'النسب '!$A$2:$E$143,5,0),"") -> 
I113: =IF(G113=القائمة!D$2,VLOOKUP($H113,'النسب '!$A$2:$E$143,5,0),"") -> 
I114: =IF(G114=القائمة!D$2,VLOOKUP($H114,'النسب '!$A$2:$E$143,5,0),"") -> 
I115: =IF(G115=القائمة!D$2,VLOOKUP($H115,'النسب '!$A$2:$E$143,5,0),"") -> 
I116: =IF(G116=القائمة!D$2,VLOOKUP($H116,'النسب '!$A$2:$E$143,5,0),"") -> 
I117: =IF(G117=القائمة!D$2,VLOOKUP($H117,'النسب '!$A$2:$E$143,5,0),"") -> 
I118: =IF(G118=القائمة!D$2,VLOOKUP($H118,'النسب '!$A$2:$E$143,5,0),"") -> 
I119: =IF(G119=القائمة!D$2,VLOOKUP($H119,'النسب '!$A$2:$E$143,5,0),"") -> 
I120: =IF(G120=القائمة!D$2,VLOOKUP($H120,'النسب '!$A$2:$E$143,5,0),"") -> 
I121: =IF(G121=القائمة!D$2,VLOOKUP($H121,'النسب '!$A$2:$E$143,5,0),"") -> 
I122: =IF(G122=القائمة!D$2,VLOOKUP($H122,'النسب '!$A$2:$E$143,5,0),"") -> 
I123: =IF(G123=القائمة!D$2,VLOOKUP($H123,'النسب '!$A$2:$E$143,5,0),"") -> 
I124: =IF(G124=القائمة!D$2,VLOOKUP($H124,'النسب '!$A$2:$E$143,5,0),"") -> 
I125: =IF(G125=القائمة!D$2,VLOOKUP($H125,'النسب '!$A$2:$E$143,5,0),"") -> 
I126: =IF(G126=القائمة!D$2,VLOOKUP($H126,'النسب '!$A$2:$E$143,5,0),"") -> 
I127: =IF(G127=القائمة!D$2,VLOOKUP($H127,'النسب '!$A$2:$E$143,5,0),"") -> 
I128: =IF(G128=القائمة!D$2,VLOOKUP($H128,'النسب '!$A$2:$E$143,5,0),"") -> 
I129: =IF(G129=القائمة!D$2,VLOOKUP($H129,'النسب '!$A$2:$E$143,5,0),"") -> 
I130: =IF(G130=القائمة!D$2,VLOOKUP($H130,'النسب '!$A$2:$E$143,5,0),"") -> 
I131: =IF(G131=القائمة!D$2,VLOOKUP($H131,'النسب '!$A$2:$E$143,5,0),"") -> 
I132: =IF(G132=القائمة!D$2,VLOOKUP($H132,'النسب '!$A$2:$E$143,5,0),"") -> 
I133: =IF(G133=القائمة!D$2,VLOOKUP($H133,'النسب '!$A$2:$E$143,5,0),"") -> 
I134: =IF(G134=القائمة!D$2,VLOOKUP($H134,'النسب '!$A$2:$E$143,5,0),"") -> 
I135: =IF(G135=القائمة!D$2,VLOOKUP($H135,'النسب '!$A$2:$E$143,5,0),"") -> 
I136: =IF(G136=القائمة!D$2,VLOOKUP($H136,'النسب '!$A$2:$E$143,5,0),"") -> 
I137: =IF(G137=القائمة!D$2,VLOOKUP($H137,'النسب '!$A$2:$E$143,5,0),"") -> 
I138: =IF(G138=القائمة!D$2,VLOOKUP($H138,'النسب '!$A$2:$E$143,5,0),"") -> 
I139: =IF(G139=القائمة!D$2,VLOOKUP($H139,'النسب '!$A$2:$E$143,5,0),"") -> 
I140: =IF(G140=القائمة!D$2,VLOOKUP($H140,'النسب '!$A$2:$E$143,5,0),"") -> 
I141: =IF(G141=القائمة!D$2,VLOOKUP($H141,'النسب '!$A$2:$E$143,5,0),"") -> 
I142: =IF(G142=القائمة!D$2,VLOOKUP($H142,'النسب '!$A$2:$E$143,5,0),"") -> 
I143: =IF(G143=القائمة!D$2,VLOOKUP($H143,'النسب '!$A$2:$E$143,5,0),"") -> 
I144: =IF(G144=القائمة!D$2,VLOOKUP($H144,'النسب '!$A$2:$E$143,5,0),"") -> 
I145: =IF(G145=القائمة!D$2,VLOOKUP($H145,'النسب '!$A$2:$E$143,5,0),"") -> 
I146: =IF(G146=القائمة!D$2,VLOOKUP($H146,'النسب '!$A$2:$E$143,5,0),"") -> 
I147: =IF(G147=القائمة!D$2,VLOOKUP($H147,'النسب '!$A$2:$E$143,5,0),"") -> 
I148: =IF(G148=القائمة!D$2,VLOOKUP($H148,'النسب '!$A$2:$E$143,5,0),"") -> 
I149: =IF(G149=القائمة!D$2,VLOOKUP($H149,'النسب '!$A$2:$E$143,5,0),"") -> 
I150: =IF(G150=القائمة!D$2,VLOOKUP($H150,'النسب '!$A$2:$E$143,5,0),"") ->  | N150: =292750-307700 -> -14950
I151: =IF(G151=القائمة!D$2,VLOOKUP($H151,'النسب '!$A$2:$E$143,5,0),"") -> 
I152: =IF(G152=القائمة!D$2,VLOOKUP($H152,'النسب '!$A$2:$E$143,5,0),"") -> 
I153: =IF(G153=القائمة!D$2,VLOOKUP($H153,'النسب '!$A$2:$E$143,5,0),"") -> 
I154: =IF(G154=القائمة!D$2,VLOOKUP($H154,'النسب '!$A$2:$E$143,5,0),"") -> 
I155: =IF(G155=القائمة!D$2,VLOOKUP($H155,'النسب '!$A$2:$E$143,5,0),"") -> 
I156: =IF(G156=القائمة!D$2,VLOOKUP($H156,'النسب '!$A$2:$E$143,5,0),"") -> 
I157: =IF(G157=القائمة!D$2,VLOOKUP($H157,'النسب '!$A$2:$E$143,5,0),"") -> 
I158: =IF(G158=القائمة!D$2,VLOOKUP($H158,'النسب '!$A$2:$E$143,5,0),"") -> 
I159: =IF(G159=القائمة!D$2,VLOOKUP($H159,'النسب '!$A$2:$E$143,5,0),"") -> 
I160: =IF(G160=القائمة!D$2,VLOOKUP($H160,'النسب '!$A$2:$E$143,5,0),"") -> 
I161: =IF(G161=القائمة!D$2,VLOOKUP($H161,'النسب '!$A$2:$E$143,5,0),"") -> 
I162: =IF(G162=القائمة!D$2,VLOOKUP($H162,'النسب '!$A$2:$E$143,5,0),"") -> 
I163: =IF(G163=القائمة!D$2,VLOOKUP($H163,'النسب '!$A$2:$E$143,5,0),"") -> 
I164: =IF(G164=القائمة!D$2,VLOOKUP($H164,'النسب '!$A$2:$E$143,5,0),"") -> 
I165: =IF(G165=القائمة!D$2,VLOOKUP($H165,'النسب '!$A$2:$E$143,5,0),"") -> 
I166: =IF(G166=القائمة!D$2,VLOOKUP($H166,'النسب '!$A$2:$E$143,5,0),"") -> 
I167: =IF(G167=القائمة!D$2,VLOOKUP($H167,'النسب '!$A$2:$E$143,5,0),"") -> 
I168: =IF(G168=القائمة!D$2,VLOOKUP($H168,'النسب '!$A$2:$E$143,5,0),"") -> 
I169: =IF(G169=القائمة!D$2,VLOOKUP($H169,'النسب '!$A$2:$E$143,5,0),"") -> 
I170: =IF(G170=القائمة!D$2,VLOOKUP($H170,'النسب '!$A$2:$E$143,5,0),"") -> 
I171: =IF(G171=القائمة!D$2,VLOOKUP($H171,'النسب '!$A$2:$E$143,5,0),"") -> 
I172: =IF(G172=القائمة!D$2,VLOOKUP($H172,'النسب '!$A$2:$E$143,5,0),"") -> 
I173: =IF(G173=القائمة!D$2,VLOOKUP($H173,'النسب '!$A$2:$E$143,5,0),"") -> 
I174: =IF(G174=القائمة!D$2,VLOOKUP($H174,'النسب '!$A$2:$E$143,5,0),"") -> 
I175: =IF(G175=القائمة!D$2,VLOOKUP($H175,'النسب '!$A$2:$E$143,5,0),"") -> 
I176: =IF(G176=القائمة!D$2,VLOOKUP($H176,'النسب '!$A$2:$E$143,5,0),"") -> 
I177: =IF(G177=القائمة!D$2,VLOOKUP($H177,'النسب '!$A$2:$E$143,5,0),"") -> 
I178: =IF(G178=القائمة!D$2,VLOOKUP($H178,'النسب '!$A$2:$E$143,5,0),"") -> 
I179: =IF(G179=القائمة!D$2,VLOOKUP($H179,'النسب '!$A$2:$E$143,5,0),"") -> 
I180: =IF(G180=القائمة!D$2,VLOOKUP($H180,'النسب '!$A$2:$E$143,5,0),"") -> 
I181: =IF(G181=القائمة!D$2,VLOOKUP($H181,'النسب '!$A$2:$E$143,5,0),"") -> 
I182: =IF(G182=القائمة!D$2,VLOOKUP($H182,'النسب '!$A$2:$E$143,5,0),"") -> 
I183: =IF(G183=القائمة!D$2,VLOOKUP($H183,'النسب '!$A$2:$E$143,5,0),"") -> 
I184: =IF(G184=القائمة!D$2,VLOOKUP($H184,'النسب '!$A$2:$E$143,5,0),"") -> 
I185: =IF(G185=القائمة!D$2,VLOOKUP($H185,'النسب '!$A$2:$E$143,5,0),"") -> 
I186: =IF(G186=القائمة!D$2,VLOOKUP($H186,'النسب '!$A$2:$E$143,5,0),"") -> 
I187: =IF(G187=القائمة!D$2,VLOOKUP($H187,'النسب '!$A$2:$E$143,5,0),"") -> 
I188: =IF(G188=القائمة!D$2,VLOOKUP($H188,'النسب '!$A$2:$E$143,5,0),"") -> 
I189: =IF(G189=القائمة!D$2,VLOOKUP($H189,'النسب '!$A$2:$E$143,5,0),"") -> 
I190: =IF(G190=القائمة!D$2,VLOOKUP($H190,'النسب '!$A$2:$E$143,5,0),"") -> 
I191: =IF(G191=القائمة!D$2,VLOOKUP($H191,'النسب '!$A$2:$E$143,5,0),"") -> 
I192: =IF(G192=القائمة!D$2,VLOOKUP($H192,'النسب '!$A$2:$E$143,5,0),"") -> 
I193: =IF(G193=القائمة!D$2,VLOOKUP($H193,'النسب '!$A$2:$E$143,5,0),"") -> 
I194: =IF(G194=القائمة!D$2,VLOOKUP($H194,'النسب '!$A$2:$E$143,5,0),"") -> 
I195: =IF(G195=القائمة!D$2,VLOOKUP($H195,'النسب '!$A$2:$E$143,5,0),"") -> 
I196: =IF(G196=القائمة!D$2,VLOOKUP($H196,'النسب '!$A$2:$E$143,5,0),"") -> 
I197: =IF(G197=القائمة!D$2,VLOOKUP($H197,'النسب '!$A$2:$E$143,5,0),"") -> 
I198: =IF(G198=القائمة!D$2,VLOOKUP($H198,'النسب '!$A$2:$E$143,5,0),"") -> 
I199: =IF(G199=القائمة!D$2,VLOOKUP($H199,'النسب '!$A$2:$E$143,5,0),"") -> 
I200: =IF(G200=القائمة!D$2,VLOOKUP($H200,'النسب '!$A$2:$E$143,5,0),"") -> 
I201: =IF(G201=القائمة!D$2,VLOOKUP($H201,'النسب '!$A$2:$E$143,5,0),"") -> 
I202: =IF(G202=القائمة!D$2,VLOOKUP($H202,'النسب '!$A$2:$E$143,5,0),"") -> 
... 287 more rows

Sheet تفرير
I1: 188100 | J1: =+I4-I1 -> 320700
B2: تقرير النسب والمبلغ خلال العمليات للمقولين
H3: البيان | I3: التقرير | J3: القائمة
B4: المقاول | C4: العملية | D4: الكلاستر | E4: الصوبة | H4: الاجمالى القيمة | I4: =SUM(J10:J102) -> 508800 | J4: =VLOOKUP(B5,القائمة!$F$2:$G$21,2,0) -> 
C5: أعمدة وجرابات | H5: الاجمالى العمالة | I5: =SUM($F$10:F102) -> 102 | J5: =IF(B5<>"",I4-J4,"") -> 
E6: المبلغ | F6: =NoToTxt(I4,"جنيها","قرش") -> فقط خمسمائة وثمانية ألف وثمانمائة جنيها
B9: التاريخ | C9: المقاول | D9: الكلاستر | E9: الصوبة | F9: عدد العمال | G9: العملية | H9: النسبة | I9: العمل | J9: القيمة المستحقة
B10: 2019-06-26 | C10: احمد حلمى | D10: 32 | E10: F | F10: 0 | G10: ميكانيكا وتظليل51% | H10: 0.4 | I10: 20.4 | J10: 9200
B11: 2019-07-03 | C11: احمد حلمى | D11: 2 | E11: A | F11: 0 | G11: ميكانيكا وتظليل51% | H11: 0.55 | I11: 28.05 | J11: 12650
B12: 2019-07-03 | C12: احمد حلمى | D12: 2 | E12: B | F12: 0 | G12: بلاستيك كامل 49% | H12: 0.55 | I12: 26.95 | J12: 12100
B13: 2019-07-03 | C13: احمد حلمى | D13: 2 | E13: B | F13: 0 | G13: ميكانيكا وتظليل51% | H13: 0.55 | I13: 28.05 | J13: 12650
B14: 2019-07-03 | C14: احمد حلمى | D14: 2 | E14: C | F14: 0 | G14: بلاستيك كامل 49% | H14: 0.55 | I14: 26.95 | J14: 12100
B15: 2019-07-03 | C15: احمد حلمى | D15: 2 | E15: C | F15: 0 | G15: ميكانيكا وتظليل51% | H15: 0.55 | I15: 28.05 | J15: 12650
B16: 2019-07-03 | C16: احمد حلمى | D16: 2 | E16: D | F16: 0 | G16: ميكانيكا وتظليل51% | H16: 0.55 | I16: 28.05 | J16: 12650
B17: 2019-07-03 | C17: احمد حلمى | D17: 2 | E17: E | F17: 0 | G17: بلاستيك كامل 49% | H17: 0.55 | I17: 26.95 | J17: 12100
B18: 2019-07-03 | C18: احمد حلمى | D18: 2 | E18: A | F18: 0 | G18: بلاستيك كامل 49% | H18: 0.55 | I18: 26.95 | J18: 12100
B19: 2019-07-03 | C19: احمد حلمى | D19: 2 | E19: E | F19: 0 | G19: ميكانيكا وتظليل51% | H19: 0.55 | I19: 28.05 | J19: 12650
B20: 2019-07-03 | C20: احمد حلمى | D20: 2 | E20: F | F20: 0 | G20: بلاستيك كامل 49% | H20: 0.55 | I20: 26.95 | J20: 12100
B21: 2019-07-03 | C21: احمد حلمى | D21: 2 | E21: D | F21: 0 | G21: بلاستيك كامل 49% | H21: 0.55 | I21: 26.95 | J21: 12100
B22: 2019-07-03 | C22: احمد حلمى | D22: 22 | E22: D | F22: 0 | G22: بلاستيك كامل 49% | H22: 0.75 | I22: 36.75 | J22: 16500
B23: 2019-07-03 | C23: احمد حلمى | D23: 2 | E23: F | F23: 0 | G23: ميكانيكا وتظليل51% | H23: 0.55 | I23: 28.05 | J23: 12650
B24: 2019-07-03 | C24: شعبان الامام | D24: 13 | E24: A | F24: 11 | G24: ميكانيكا وتظليل51% | H24: 0.2 | I24: 10.2 | J24: 4600
B25: 2019-07-03 | C25: ياسر هجرس | D25: 13 | E25: A | F25: 0 | G25: بلاستيك كامل 49% | H25: 0.5 | I25: 24.5 | J25: 11000
B26: 2019-07-03 | C26: ياسر هجرس | D26: 13 | E26: B | F26: 14 | G26: بلاستيك كامل 49% | H26: 0.25 | I26: 12.25 | J26: 5500
B27: 2019-07-10 | C27: ياسر هجرس | D27: 13 | E27: b | F27: 0 | G27: بلاستيك كامل 49% | H27: 0.1 | I27: 4.9 | J27: 2200
B28: 2019-07-10 | C28: احمد فارس | D28: 13 | E28: b | F28: 0 | G28: ميكانيكا وتظليل51% | I28: 0 | J28: 0
B29: 2019-07-31 | C29: احمد فارس | D29: 13 | E29: b | F29: 0 | G29: ميكانيكا وتظليل51% | I29: 0 | J29: 0
B30: 2019-08-21 | C30: احمد فارس | D30: 13 | E30: b | F30: 0 | G30: ميكانيكا وتظليل51% | I30: 0 | J30: 0
B31: 2019-08-28 | C31: احمد فارس | D31: 13 | E31: b | F31: 0 | G31: ميكانيكا وتظليل51% | I31: 0 | J31: 0
B32: 2019-09-11 | C32: سامى الغندور | D32: 13 | E32: b | F32: 0 | G32: بلاستيك كامل 49% | I32: 0 | J32: 0
B33: 2019-07-10 | C33: محمد جمعه | D33: 13 | E33: c | F33: 0 | G33: ميكانيكا وتظليل51% | I33: 0 | J33: 0
B34: 2019-07-17 | C34: محمد جمعه | D34: 13 | E34: c | F34: 0 | G34: ميكانيكا وتظليل51% | I34: 0 | J34: 0
B35: 2019-07-24 | C35: محمد جمعه | D35: 13 | E35: c | F35: 0 | G35: ميكانيكا وتظليل51% | I35: 0 | J35: 0
B36: 2019-07-31 | C36: محمد جمعه | D36: 13 | E36: c | F36: 0 | G36: ميكانيكا وتظليل51% | I36: 0 | J36: 0
B37: 2019-08-21 | C37: محمد جمعه | D37: 13 | E37: c | F37: 0 | G37: ميكانيكا وتظليل51% | I37: 0 | J37: 0
B38: 2019-08-28 | C38: محمد جمعه | D38: 13 | E38: c | F38: 0 | G38: ميكانيكا وتظليل51% | I38: 0 | J38: 0
B39: 2019-07-10 | C39: هيثم العايدى | D39: 13 | E39: d | F39: 0 | G39: ميكانيكا وتظليل51% | H39: 0 | I39: 0 | J39: 0
B40: 2019-08-28 | C40: هيثم العايدى | D40: 13 | E40: d | F40: 0 | G40: ميكانيكا وتظليل51% | I40: 0 | J40: 0
B41: 2019-07-17 | C41: محمد على البرى | D41: 13 | E41: e | F41: 0 | G41: ميكانيكا وتظليل51% | H41: 0.5 | I41: 25.5 | J41: 11500
B42: 2019-07-31 | C42: محمد على البرى | D42: 13 | E42: e | F42: 0 | G42: ميكانيكا وتظليل51% | H42: 0.2 | I42: 10.2 | J42: 4600
B43: 2019-07-03 | C43: سامى الغندور | D43: 13 | E43: F | F43: 0 | G43: بلاستيك كامل 49% | H43: 0 | I43: 0 | J43: 0
B44: 2019-09-11 | C44: هيثم العايدى | D44: 13 | E44: F | F44: 0 | G44: ميكانيكا وتظليل51% | H44: 0 | I44: 0 | J44: 0
B45: 2019-07-10 | C45: هيثم العايدى | D45: 13 | E45: f | F45: 0 | G45: ميكانيكا وتظليل51% | I45: 0 | J45: 0
B46: 2019-09-11 | C46: سامى الغندور | D46: 13 | E46: F | F46: 0 | G46: بلاستيك كامل 49% | I46: 0 | J46: 0
B47: 2019-08-07 | C47: محمد سليمان | D47: 22 | E47: c | F47: 0 | G47: بلاستيك كامل 49% | H47: 0.25 | I47: 12.25 | J47: 5500
B48: 2019-07-03 | C48: طاهر طارق | D48: 22 | E48: D | F48: 0 | G48: ميكانيكا وتظليل51% | H48: 0.4 | I48: 20.4 | J48: 9200
B49: 2019-09-01 | C49: فتحى زيدان سعيد | D49: 22 | E49: d | F49: 0 | G49: بلاستيك كامل 49% | H49: 0.1 | I49: 4.9 | J49: 2200
B50: 2019-09-11 | C50: احمد كمال | D50: 23 | E50: a | F50: 0 | G50: ميكانيكا وتظليل51% | H50: 0.1 | I50: 5.1 | J50: 2300
B51: 2019-08-28 | C51: حسين عبد العال | D51: 23 | E51: A | F51: 0 | G51: بلاستيك كامل 49% | H51: 0.65 | I51: 31.85 | J51: 14300
B52: 2019-08-21 | C52: احمد كمال | D52: 23 | E52: a | F52: 0 | G52: ميكانيكا وتظليل51% | H52: 0.1 | I52: 5.1 | J52: 2300
B53: 2019-09-04 | C53: حسين عبد العال | D53: 23 | E53: a | F53: 0 | G53: بلاستيك كامل 49% | H53: 0.1 | I53: 4.9 | J53: 2200
B54: 2019-07-17 | C54: محمد عياد | D54: 23 | E54: b | F54: 0 | G54: بلاستيك كامل 49% | H54: 0.35 | I54: 17.15 | J54: 7700
B55: 2019-07-17 | C55: محمود فاروق | D55: 23 | E55: b | F55: 0 | G55: ميكانيكا وتظليل51% | H55: 0 | I55: 0 | J55: 0
B56: 2019-07-24 | C56: محمود فاروق | D56: 23 | E56: b | F56: 0 | G56: ميكانيكا وتظليل51% | H56: 0 | I56: 0 | J56: 0
B57: 2019-07-31 | C57: محمود فاروق | D57: 23 | E57: b | F57: 0 | G57: ميكانيكا وتظليل51% | H57: 0 | I57: 0 | J57: 0
B58: 2019-08-07 | C58: حسين عبد العال | D58: 23 | E58: b | F58: 0 | G58: بلاستيك كامل 49% | H58: 0 | I58: 0 | J58: 0
B59: 2019-08-07 | C59: محمود فاروق | D59: 23 | E59: b | F59: 0 | G59: ميكانيكا وتظليل51% | H59: 0 | I59: 0 | J59: 0
B60: 2019-07-03 | C60: حسين عبد العال | D60: 23 | E60: C | F60: 25 | G60: بلاستيك كامل 49% | H60: 0.7 | I60: 34.3 | J60: 15400
B61: 2019-09-11 | C61: احمد فارس | D61: 23 | E61: c | F61: 0 | G61: ميكانيكا وتظليل51% | H61: 0 | I61: 0 | J61: 0
B62: 2019-08-28 | C62: احمد فارس | D62: 23 | E62: C | F62: 0 | G62: ميكانيكا وتظليل51% | H62: 0 | I62: 0 | J62: 0
B63: 2019-07-03 | C63: حسين عبد العال | D63: 23 | E63: D | F63: 25 | G63: بلاستيك كامل 49% | H63: 0 | I63: 0 | J63: 0
B64: 2019-07-17 | C64: السيد محمد على | D64: 23 | E64: d | F64: 0 | G64: ميكانيكا وتظليل51% | H64: 0 | I64: 0 | J64: 0
B65: 2019-07-24 | C65: السيد محمد على | D65: 23 | E65: d | F65: 0 | G65: ميكانيكا وتظليل51% | H65: 0 | I65: 0 | J65: 0
B66: 2019-07-31 | C66: السيد محمد على | D66: 23 | E66: d | F66: 0 | G66: ميكانيكا وتظليل51% | H66: 0 | I66: 0 | J66: 0
B67: 2019-07-03 | C67: عرفه محمود | D67: 23 | E67: F | F67: 15 | G67: بلاستيك كامل 49% | H67: 0 | I67: 0 | J67: 0
B68: 2019-07-10 | C68: شعبان الامام | D68: 23 | E68: F | F68: 0 | G68: ميكانيكا وتظليل51% | H68: 0.1 | I68: 5.1 | J68: 2300
B69: 2019-09-11 | C69: احمد مرعى | D69: 23 | E69: f | F69: 0 | G69: ميكانيكا وتظليل51% | H69: 0.1 | I69: 5.1 | J69: 2300
B70: 2019-07-31 | C70: حسين عبد العال | D70: 24 | E70: a | F70: 0 | G70: بلاستيك كامل 49% | H70: 0.55 | I70: 26.95 | J70: 12100
B71: 2019-08-07 | C71: حسين عبد العال | D71: 24 | E71: a | F71: 0 | G71: بلاستيك كامل 49% | H71: 0.1 | I71: 4.9 | J71: 2200
B72: 2019-07-24 | C72: حسين عبد العال | D72: 24 | E72: b | F72: 0 | G72: بلاستيك كامل 49% | H72: 0.6 | I72: 29.4 | J72: 13200
B73: 2019-07-17 | C73: حسين عبد العال | D73: 24 | E73: c | F73: 0 | G73: بلاستيك كامل 49% | H73: 0.5 | I73: 24.5 | J73: 11000
B74: 2019-07-24 | C74: حسين عبد العال | D74: 24 | E74: c | F74: 0 | G74: بلاستيك كامل 49% | H74: 0.2 | I74: 9.8 | J74: 4400
B75: 2019-07-10 | C75: حسين عبد العال | D75: 24 | E75: D | F75: 0 | G75: بلاستيك كامل 49% | H75: 0.7 | I75: 34.3 | J75: 15400
B76: 2019-07-24 | C76: عرفه محمود | D76: 24 | E76: e | F76: 0 | G76: بلاستيك كامل 49% | H76: 0.65 | I76: 31.85 | J76: 14300
B77: 2019-08-21 | C77: عرفه محمود | D77: 24 | E77: E | F77: 0 | G77: بلاستيك كامل 49% | H77: 0.1 | I77: 4.9 | J77: 2200
B78: 2019-07-10 | C78: عرفه محمود | D78: 24 | E78: f | F78: 0 | G78: بلاستيك كامل 49% | H78: 0.7 | I78: 34.3 | J78: 15400
B79: 2019-08-21 | C79: عرفه محمود | D79: 24 | E79: f | F79: 0 | G79: بلاستيك كامل 49% | H79: 0.05 | I79: 2.45 | J79: 1100
B80: 2019-06-26 | C80: احمد حلمى | D80: 32 | E80: C | F80: 0 | G80: بلاستيك كامل 49% | H80: 0.3 | I80: 14.7 | J80: 6600
B81: 2019-07-03 | C81: احمد حلمى | D81: 32 | E81: C | F81: 0 | G81: ميكانيكا وتظليل51% | H81: 0.3 | I81: 15.3 | J81: 6900
B82: 2019-07-03 | C82: احمد حلمى | D82: 32 | E82: E | F82: 5 | G82: ميكانيكا وتظليل51% | H82: 0.4 | I82: 20.4 | J82: 9200
B83: 2019-07-03 | C83: احمد حلمى | D83: 32 | E83: E | F83: 0 | G83: بلاستيك كامل 49% | H83: 0.4 | I83: 19.6 | J83: 8800
B84: 2019-07-03 | C84: احمد حلمى | D84: 32 | E84: F | F84: 0 | G84: بلاستيك كامل 49% | H84: 0.4 | I84: 19.6 | J84: 8800
B85: 2019-07-24 | C85: ياسر حماد | D85: 33 | E85: a | F85: 0 | G85: بلاستيك كامل 49% | H85: 0 | I85: 0 | J85: 0
B86: 2019-09-06 | C86: ياسر حماد | D86: 33 | E86: A | F86: 0 | G86: بلاستيك كامل 49% | H86: 0 | I86: 0 | J86: 0
B87: 2019-07-10 | C87: ضياء على محمد | D87: 33 | E87: b | F87: 0 | G87: بلاستيك كامل 49% | H87: 0.2 | I87: 9.8 | J87: 4400
B88: 2019-07-17 | C88: ياسر حماد | D88: 33 | E88: d | F88: 0 | G88: بلاستيك كامل 49% | H88: 0 | I88: 0 | J88: 0
B89: 2019-07-03 | C89: سامى الغندور | D89: 33 | E89: E | F89: 7 | G89: بلاستيك كامل 49% | H89: 0.1 | I89: 4.9 | J89: 2200
B90: 2019-07-31 | C90: سامى الغندور | D90: 33 | E90: e | F90: 0 | G90: بلاستيك كامل 49% | H90: 0.5 | I90: 24.5 | J90: 11000
B91: 2019-07-10 | C91: سامى الغندور | D91: 33 | E91: f | F91: 0 | G91: بلاستيك كامل 49% | H91: 0.5 | I91: 24.5 | J91: 11000
B92: 2019-07-24 | C92: سامى الغندور | D92: 33 | E92: f | F92: 0 | G92: بلاستيك كامل 49% | H92: 0.15 | I92: 7.35 | J92: 3300
B93: 2019-08-07 | C93: عرفه محمود | D93: 34 | E93: a | F93: 0 | G93: بلاستيك كامل 49% | H93: 0.7 | I93: 34.3 | J93: 15400
B94: 2019-08-21 | C94: عرفه محمود | D94: 34 | E94: a | F94: 0 | G94: بلاستيك كامل 49% | H94: 0.05 | I94: 2.45 | J94: 1100
B95: 2019-08-28 | C95: عرفه محمود | D95: 34 | E95: B | F95: 0 | G95: بلاستيك كامل 49% | H95: 0.15 | I95: 7.35 | J95: 3300
B96: 2019-09-18 | C96: عرفه محمود | D96: 34 | E96: B | F96: 0 | G96: بلاستيك كامل 49% | H96: 0.15 | I96: 7.35 | J96: 3300
B97: 2019-08-28 | C97: عرفه محمود | D97: 34 | E97: d | F97: 0 | G97: بلاستيك كامل 49% | H97: 0.2 | I97: 9.8 | J97: 4400
B98: 2019-08-07 | C98: عرفه محمود | D98: 34 | E98: d | F98: 0 | G98: بلاستيك كامل 49% | H98: 0.55 | I98: 26.95 | J98: 12100
B99: 2019-08-07 | C99: سامى الغندور | D99: 34 | E99: e | F99: 0 | G99: بلاستيك كامل 49% | H99: 0.6 | I99: 29.4 | J99: 13200
B100: 2019-08-07 | C100: سامى الغندور | D100: 34 | E100: f | F100: 0 | G100: بلاستيك كامل 49% | H100: 0.6 | I100: 29.4 | J100: 13200
B101: 2019-09-04 | C101: هيثم العايدى | D101: 13 | E101: a | F101: 0 | G101: ميكانيكا وتظليل51% | I101: 0 | J101: 0
B102: 2019-09-04 | C102: احمد فارس | D102: 23 | E102: c | F102: 0 | G102: ميكانيكا وتظليل51% | H102: 0 | I102: 0 | J102: 0
B103: 2019-09-04 | C103: احمد مرعى | D103: 23 | E103: f | F103: 0 | G103: ميكانيكا وتظليل51% | H103: 0.2 | I103: 10.2 | J103: 4600
B104: 2019-09-04 | C104: احمد كمال | D104: 23 | E104: a | F104: 0 | G104: ميكانيكا وتظليل51% | H104: 0.15 | I104: 7.65 | J104: 3450
B105: 2019-09-04 | C105: عرفه محمود | D105: 34 | E105: B | F105: 0 | G105: بلاستيك كامل 49% | H105: 0.45 | I105: 22.05 | J105: 9900
B106: 2019-09-05 | C106: حسين عبد العال | D106: 13 | E106: A | F106: 0 | G106: بلاستيك كامل 49% | H106: 0 | I106: 0 | J106: 0
B107: 2019-07-24 | C107: ياسر حماد | D107: 33 | E107: d | F107: 0 | G107: بلاستيك كامل 49% | H107: 0 | I107: 0 | J107: 0
B108: 2019-09-07 | C108: ياسر حماد | D108: 33 | E108: D | F108: 0 | G108: بلاستيك كامل 49% | H108: 0 | I108: 0 | J108: 0
B109: 2019-09-07 | C109: فتحى زيدان سعيد | D109: 22 | E109: D | F109: 0 | G109: بلاستيك كامل 49% | H109: 0.1 | I109: 4.9 | J109: 2200
B110: 2019-09-08 | C110: السيد محمد على | D110: 23 | E110: D | F110: 0 | G110: بلاستيك كامل 49% | H110: 0 | I110: 0 | J110: 0
B111: 2019-09-11 | C111: حسين عبد العال | D111: 23 | E111: B | F111: 0 | G111: بلاستيك كامل 49% | H111: 0 | I111: 0 | J111: 0
B112: 2019-09-18 | C112: عرفه محمود | D112: 34 | E112: C | F112: 0 | G112: بلاستيك كامل 49% | H112: 0.6 | I112: 29.4 | J112: 13200
B113: 2019-09-18 | C113: حسين عبد العال | D113: 33 | E113: B | F113: 0 | G113: بلاستيك كامل 49% | H113: 0.4 | I113: 19.6 | J113: 8800
B114: 2019-09-25 | C114: عرفه محمود | D114: 48 | E114: F | F114: 0 | G114: بلاستيك كامل 49% | H114: 0.55 | I114: 26.95 | J114: 12100
B115: 2019-09-25 | C115: احمد عبد المنعم | D115: 33 | E115: C | F115: 0 | G115: بلاستيك كامل 49% | H115: 0.2 | I115: 9.8 | J115: 4400
B116: 2019-09-25 | C116: احمد فارس | D116: 13 | E116: B | F116: 0 | G116: ميكانيكا وتظليل51% | I116: 0 | J116: 0
B117: 2019-10-02 | C117: عرفه محمود | D117: 34 | E117: C | F117: 0 | G117: بلاستيك كامل 49% | H117: 0.15 | I117: 7.35 | J117: 3300
B118: 2019-10-02 | C118: احمد عبد المنعم | D118: 33 | E118: C | F118: 0 | G118: بلاستيك كامل 49% | H118: 0.15 | I118: 7.35 | J118: 3300
B119: 2019-10-02 | C119: عرفه محمود | D119: 48 | E119: F | F119: 0 | G119: بلاستيك كامل 49% | H119: 0.15 | I119: 7.35 | J119: 3300
B120: 2019-10-02 | C120: احمد فارس | D120: 23 | E120: C | F120: 0 | G120: ميكانيكا وتظليل51% | H120: 0 | I120: 0 | J120: 0
B121: 2019-10-29 | C121: ياسر حماد | D121: 44 | E121: A | F121: 0 | G121: بلاستيك كامل 49% | H121: 0 | I121: 0 | J121: 0
B122: 2019-11-27 | C122: ياسر حماد | D122: 44 | E122: A | F122: 0 | G122: بلاستيك كامل 49% | H122: 0 | I122: 0 | J122: 0
B123: 2019-11-27 | C123: ياسر حماد | D123: 44 | E123: B | F123: 0 | G123: بلاستيك كامل 49% | H123: 0 | I123: 0 | J123: 0
B124: 2019-11-27 | C124: ياسر حماد | D124: 44 | E124: C | F124: 0 | G124: بلاستيك كامل 49% | H124: 0 | I124: 0 | J124: 0
B125: 2019-10-23 | C125: ياسر حماد | D125: 44 | E125: D | F125: 0 | G125: بلاستيك كامل 49% | H125: 0 | I125: 0 | J125: 0
B126: 2019-10-09 | C126: احمد عبد المنعم | D126: 33 | E126: C | F126: 0 | G126: بلاستيك كامل 49% | H126: 0.15 | I126: 7.35 | J126: 3300
B127: 2019-10-09 | C127: سامى الغندور | D127: 34 | E127: E | F127: 0 | G127: بلاستيك كامل 49% | H127: 0.1 | I127: 4.9 | J127: 2200
B128: 2019-10-09 | C128: عرفه محمود | D128: 47 | E128: A | F128: 0 | G128: بلاستيك كامل 49% | H128: 0.75 | I128: 36.75 | J128: 16500
B129: 2019-10-29 | C129: ياسر حماد | D129: 44 | E129: D | F129: 0 | G129: بلاستيك كامل 49% | H129: 0 | I129: 0 | J129: 0
B130: 2019-11-06 | C130: ياسر حماد | D130: 44 | E130: D | F130: 0 | G130: بلاستيك كامل 49% | H130: 0 | I130: 0 | J130: 0
B131: 2019-11-27 | C131: ياسر حماد | D131: 44 | E131: D | F131: 0 | G131: بلاستيك كامل 49% | H131: 0 | I131: 0 | J131: 0
B132: 2019-10-09 | C132: ياسر حماد | D132: 44 | E132: E | F132: 0 | G132: بلاستيك كامل 49% | H132: 0 | I132: 0 | J132: 0
B133: 2019-10-09 | C133: احمد كمال | D133: 23 | E133: A | F133: 0 | G133: ميكانيكا وتظليل51% | H133: 0.15 | I133: 7.65 | J133: 3450
B134: 2019-10-16 | C134: عرفه محمود | D134: 47 | E134: B | F134: 0 | G134: بلاستيك كامل 49% | H134: 0.5 | I134: 24.5 | J134: 11000
B135: 2019-10-16 | C135: هيثم العايدى | D135: 23 | E135: D | F135: 0 | G135: ميكانيكا وتظليل51% | H135: 0 | I135: 0 | J135: 0
B136: 2019-10-16 | C136: احمد فارس | D136: 23 | E136: C | F136: 0 | G136: ميكانيكا وتظليل51% | H136: 0 | I136: 0 | J136: 0
B137: 2019-10-16 | C137: ياسر ابو طالب | D137: 66 | E137: C | F137: 0 | G137: ميكانيكا وتظليل51% | H137: 0.25 | I137: 12.75 | J137: 5750
B138: 2019-10-16 | C138: ياسر ابو طالب | D138: 66 | E138: C | F138: 0 | G138: بلاستيك كامل 49% | H138: 0.35 | I138: 17.15 | J138: 7700
B139: 2019-10-16 | C139: سامى الغندور | D139: 67 | E139: B | F139: 0 | G139: بلاستيك كامل 49% | I139: 0 | J139: 0
B140: 2019-10-23 | C140: ياسر حماد | D140: 44 | E140: E | F140: 0 | G140: بلاستيك كامل 49% | H140: 0 | I140: 0 | J140: 0
B141: 2019-11-06 | C141: ياسر حماد | D141: 44 | E141: E | F141: 0 | G141: بلاستيك كامل 49% | H141: 0 | I141: 0 | J141: 0
B142: 2019-10-09 | C142: ياسر حماد | D142: 44 | E142: F | F142: 0 | G142: بلاستيك كامل 49% | H142: 0 | I142: 0 | J142: 0
B143: 2019-10-23 | C143: ياسر حماد | D143: 44 | E143: F | F143: 0 | G143: بلاستيك كامل 49% | H143: 0 | I143: 0 | J143: 0
B144: 2019-11-06 | C144: ياسر حماد | D144: 44 | E144: F | F144: 0 | G144: بلاستيك كامل 49% | H144: 0 | I144: 0 | J144: 0
B145: 2019-11-27 | C145: ياسر حماد | D145: 44 | E145: F | F145: 0 | G145: بلاستيك كامل 49% | H145: 0 | I145: 0 | J145: 0
B146: 2019-10-02 | C146: ياسر حماد | D146: 48 | E146: A | F146: 0 | G146: بلاستيك كامل 49% | H146: 0 | I146: 0 | J146: 0
B147: 2019-10-23 | C147: احمد فارس | D147: 23 | E147: C | F147: 0 | G147: ميكانيكا وتظليل51% | H147: 0 | I147: 0 | J147: 0
B148: 2019-10-23 | C148: سامى الغندور | D148: 67 | E148: B | F148: 0 | G148: بلاستيك كامل 49% | I148: 0 | J148: 0
B149: 2019-10-23 | C149: سامى الغندور | D149: 67 | E149: A | F149: 0 | G149: بلاستيك كامل 49% | I149: 0 | J149: 0
B150: 2019-10-23 | C150: عرفه محمود | D150: 87 | E150: F | F150: 0 | G150: بلاستيك كامل 49% | H150: 0.35 | I150: 17.15 | J150: 7700
B151: 2019-10-23 | C151: حسين عبد العال | D151: 87 | E151: A | F151: 0 | G151: بلاستيك كامل 49% | H151: 0.2 | I151: 9.8 | J151: 4400
B152: 2019-10-23 | C152: حسين عبد العال | D152: 87 | E152: B | F152: 0 | G152: بلاستيك كامل 49% | H152: 0.3 | I152: 14.7 | J152: 6600
B153: 2019-10-23 | C153: عرفه محمود | D153: 47 | E153: B | F153: 0 | G153: بلاستيك كامل 49% | H153: 0.2 | I153: 9.8 | J153: 4400
B154: 2019-10-23 | C154: هيثم العايدى | D154: 67 | E154: A | F154: 0 | G154: ميكانيكا وتظليل51% | H154: 0 | I154: 0 | J154: 0
B155: 2019-10-23 | C155: هيثم العايدى | D155: 67 | E155: B | F155: 0 | G155: ميكانيكا وتظليل51% | H155: 0 | I155: 0 | J155: 0
B156: 2019-10-23 | C156: محمود فاروق | D156: 23 | E156: B | F156: 0 | G156: ميكانيكا وتظليل51% | H156: 0 | I156: 0 | J156: 0
B157: 2019-10-23 | C157: ياسر ابو طالب | D157: 66 | E157: C | F157: 0 | G157: بلاستيك كامل 49% | H157: 0.2 | I157: 9.8 | J157: 4400
B158: 2019-10-23 | C158: سامى الغندور | D158: 67 | E158: D | F158: 0 | G158: بلاستيك كامل 49% | H158: 0.2 | I158: 9.8 | J158: 4400
B159: 2019-10-23 | C159: ياسر حماد | D159: 48 | E159: A | F159: 0 | G159: بلاستيك كامل 49% | H159: 0 | I159: 0 | J159: 0
B160: 2019-11-27 | C160: ياسر حماد | D160: 48 | E160: A | F160: 0 | G160: بلاستيك كامل 49% | H160: 0 | I160: 0 | J160: 0
B161: 2019-10-29 | C161: حسين عبد العال | D161: 87 | E161: A | F161: 0 | G161: بلاستيك كامل 49% | H161: 0.35 | I161: 17.15 | J161: 7700
B162: 2019-10-29 | C162: حسين عبد العال | D162: 87 | E162: B | F162: 0 | G162: بلاستيك كامل 49% | H162: 0.25 | I162: 12.25 | J162: 5500
B163: 2019-10-29 | C163: سامى الغندور | D163: 87 | E163: D | F163: 0 | G163: بلاستيك كامل 49% | H163: 0.4 | I163: 19.6 | J163: 8800
B164: 2019-10-29 | C164: سامى الغندور | D164: 67 | E164: A | F164: 0 | G164: بلاستيك كامل 49% | H164: 0 | I164: 0 | J164: 0
B165: 2019-10-29 | C165: سامى الغندور | D165: 67 | E165: B | F165: 0 | G165: بلاستيك كامل 49% | H165: 0 | I165: 0 | J165: 0
B166: 2019-10-29 | C166: عرفه محمود | D166: 87 | E166: F | F166: 0 | G166: بلاستيك كامل 49% | H166: 0.25 | I166: 12.25 | J166: 5500
B167: 2019-10-29 | C167: ياسر ابو طالب | D167: 66 | E167: C | F167: 0 | G167: بلاستيك كامل 49% | H167: 0.15 | I167: 7.35 | J167: 3300
B168: 2019-10-29 | C168: ياسر ابو طالب | D168: 66 | E168: C | F168: 0 | G168: ميكانيكا وتظليل51% | H168: 0.1 | I168: 5.1 | J168: 2300
B169: 2019-10-29 | C169: احمد عبد المنعم | D169: 33 | E169: C | F169: 0 | G169: بلاستيك كامل 49% | H169: 0.15 | I169: 7.35 | J169: 3300
B170: 2019-10-29 | C170: احمد فارس | D170: 24 | E170: D | F170: 0 | G170: ميكانيكا وتظليل51% | H170: 0.4 | I170: 20.4 | J170: 9200
B171: 2019-10-29 | C171: عرفه محمود | D171: 48 | E171: F | F171: 0 | G171: بلاستيك كامل 49% | H171: 0.05 | I171: 2.45 | J171: 1100
B172: 2019-11-06 | C172: سامى الغندور | D172: 87 | E172: D | F172: 0 | G172: بلاستيك كامل 49% | H172: 0.2 | I172: 9.8 | J172: 4400
B173: 2019-11-06 | C173: عرفه محمود | D173: 87 | E173: E | F173: 0 | G173: بلاستيك كامل 49% | H173: 0.6 | I173: 29.4 | J173: 13200
B174: 2019-11-06 | C174: عرفه محمود | D174: 87 | E174: F | F174: 0 | G174: بلاستيك كامل 49% | H174: 0.1 | I174: 4.9 | J174: 2200
B175: 2019-11-06 | C175: حسين عبد العال | D175: 87 | E175: A | F175: 0 | G175: بلاستيك كامل 49% | H175: 0.2 | I175: 9.8 | J175: 4400
B176: 2019-11-06 | C176: حسين عبد العال | D176: 87 | E176: B | F176: 0 | G176: بلاستيك كامل 49% | H176: 0.15 | I176: 7.35 | J176: 3300
B177: 2019-11-06 | C177: حسين عبد العال | D177: 86 | E177: A | F177: 0 | G177: بلاستيك كامل 49% | H177: 0.6 | I177: 29.4 | J177: 13200
B178: 2019-10-02 | C178: ياسر حماد | D178: 48 | E178: B | F178: 0 | G178: بلاستيك كامل 49% | H178: 0 | I178: 0 | J178: 0
B179: 2019-10-09 | C179: ياسر حماد | D179: 48 | E179: B | F179: 0 | G179: بلاستيك كامل 49% | H179: 0 | I179: 0 | J179: 0
B180: 2019-11-27 | C180: ياسر حماد | D180: 48 | E180: B | F180: 0 | G180: بلاستيك كامل 49% | H180: 0 | I180: 0 | J180: 0
B181: 2019-11-06 | C181: احمد عبد المنعم | D181: 83 | E181: E | F181: 0 | G181: بلاستيك كامل 49% | H181: 0.3 | I181: 14.7 | J181: 6600
B182: 2019-11-06 | C182: احمد فارس | D182: 23 | E182: C | F182: 0 | G182: ميكانيكا وتظليل51% | H182: 0 | I182: 0 | J182: 0
B183: 2019-11-06 | C183: احمد فارس | D183: 24 | E183: D | F183: 0 | G183: ميكانيكا وتظليل51% | H183: 0.3 | I183: 15.3 | J183: 6900
B184: 2019-11-06 | C184: احمد فارس | D184: 24 | E184: F | F184: 0 | G184: ميكانيكا وتظليل51% | H184: 0.05 | I184: 2.55 | J184: 1150
B185: 2019-11-06 | C185: هيثم العايدى | D185: 24 | E185: A | F185: 0 | G185: ميكانيكا وتظليل51% | H185: 0 | I185: 0 | J185: 0
B186: 2019-11-06 | C186: هيثم العايدى | D186: 24 | E186: B | F186: 0 | G186: ميكانيكا وتظليل51% | H186: 0 | I186: 0 | J186: 0
B187: 2019-11-06 | C187: ياسر ابو طالب | D187: 66 | E187: C | F187: 0 | G187: ميكانيكا وتظليل51% | H187: 0.4 | I187: 20.4 | J187: 9200
B188: 2019-11-06 | C188: ياسر ابو طالب | D188: 66 | E188: C | F188: 0 | G188: بلاستيك كامل 49% | H188: 0.05 | I188: 2.45 | J188: 1100
B189: 2019-11-13 | C189: عرفه محمود | D189: 47 | E189: B | F189: 0 | G189: بلاستيك كامل 49% | H189: 0.05 | I189: 2.45 | J189: 1100
B190: 2019-11-13 | C190: عرفه محمود | D190: 86 | E190: E | F190: 0 | G190: بلاستيك كامل 49% | H190: 0.45 | I190: 22.05 | J190: 9900
B191: 2019-11-13 | C191: عرفه محمود | D191: 87 | E191: E | F191: 0 | G191: بلاستيك كامل 49% | H191: 0.1 | I191: 4.9 | J191: 2200
B192: 2019-11-13 | C192: عرفه محمود | D192: 87 | E192: F | F192: 0 | G192: بلاستيك كامل 49% | H192: 0.15 | I192: 7.35 | J192: 3300
B193: 2019-11-13 | C193: سامى الغندور | D193: 67 | E193: C | F193: 0 | G193: بلاستيك كامل 49% | H193: 0.4 | I193: 19.6 | J193: 8800
B194: 2019-11-13 | C194: احمد فارس | D194: 24 | E194: F | F194: 0 | G194: ميكانيكا وتظليل51% | H194: 0.15 | I194: 7.65 | J194: 3450
B195: 2019-11-13 | C195: ناصر | D195: 33 | E195: F | F195: 0 | G195: ميكانيكا وتظليل51% | H195: 0.1 | I195: 5.1 | J195: 2300
B196: 2019-11-13 | C196: هيثم العايدى | D196: 33 | E196: E | F196: 0 | G196: ميكانيكا وتظليل51% | H196: 0.65 | I196: 33.15 | J196: 14950
B197: 2019-11-13 | C197: هيثم العايدى | D197: 24 | E197: a | F197: 0 | G197: ميكانيكا وتظليل51% | H197: 0 | I197: 0 | J197: 0
B198: 2019-11-13 | C198: هيثم العايدى | D198: 24 | E198: b | F198: 0 | G198: ميكانيكا وتظليل51% | H198: 0 | I198: 0 | J198: 0
B199: 2019-10-02 | C199: ياسر حماد | D199: 48 | E199: C | F199: 0 | G199: بلاستيك كامل 49% | H199: 0 | I199: 0 | J199: 0
B200: 2019-10-23 | C200: ياسر حماد | D200: 48 | E200: C | F200: 0 | G200: بلاستيك كامل 49% | H200: 0 | I200: 0 | J200: 0
B201: 2019-11-27 | C201: ياسر حماد | D201: 48 | E201: C | F201: 0 | G201: بلاستيك كامل 49% | H201: 0 | I201: 0 | J201: 0
B202: 2019-10-02 | C202: ياسر حماد | D202: 48 | E202: D | F202: 0 | G202: بلاستيك كامل 49% | H202: 0 | I202: 0 | J202: 0
... 292 more rows
